bitfinex/quotes_SOLUSD_20260114
["timestamp","ask_amount","ask_price","bid_price","bid_amount"]
[1768408314641,0.67484121,148.19,148.07,7.17839272]
[1768408314951,0.67484121,148.16,148.06,12.32]
[1768408315146,0.67484121,148.16,148.02,40.73165768]
[1768408315147,0.67484121,148.13,148.08,10.15665882]
[1768408315351,10.83150003,148.13,148.07,10.15665882]
[1768408315939,0.67484121,148.13,148.08,10.15665882]
[1768408316145,0.67484121,148.13,148.07,5.34408856]
[1768408316345,0.67484121,148.13,148.08,10.15665882]
[1768408316562,0.67484121,148.13,148.07,5.34408856]
[1768408316770,0.67484121,148.13,148.08,10.15665882]
[1768408316959,0.67484121,148.12,148.07,15.50074738]
[1768408317161,0.67484121,148.12,148.08,10.15665882]
[1768408317345,0.67484121,148.14,148.07,5.34408856]
[1768408317542,0.67484121,148.14,148.09,10.15665882]
[1768408317852,0.67484121,148.16,148.11,10.15665882]
[1768408318058,0.67484121,148.16,148.12,10.15665882]
[1768408318256,0.67484121,148.16,148.07,5.34408856]
[1768408318457,0.67484121,148.16,148.11,10.15665882]
[1768408318660,0.67484121,148.16,148.07,5.34408856]
[1768408321269,0.67484121,148.21,148.17,10.15665882]
[1768408321446,0.67484121,148.21,148.14,5.34408856]
[1768408321654,0.67484121,148.26,148.18,10.15665882]
[1768408321869,12.3,148.27,148.18,10.15665882]
[1768408321870,0.67484121,148.23,148.18,10.15665882]
[1768408322467,10.83150003,148.23,148.17,10.15665882]
[1768408322664,0.67484121,148.19,148.14,5.34408856]
[1768408322867,0.67484121,148.17,148.08,7.17839272]
[1768408323064,0.67484121,148.17,148.04,12.32]
[1768408323271,0.67484121,148.15,148.1,10.15665882]
[1768408323459,0.67484121,148.14,148.08,10.15665882]
[1768408323795,5.34408856,148.24,148.1,10.15665882]
[1768408323796,0.67484121,148.17,148.1,10.15665882]
[1768408324073,0.67484121,148.17,148.1,5.34408856]
[1768408324264,0.67484121,148.16,148.11,10.15665882]
[1768408324660,0.67484121,148.16,148.12,10.15665882]
[1768408324872,0.67484121,148.18,148.1,5.34408856]
[1768408325096,0.67484121,148.21,148.16,10.15665882]
[1768408325260,0.67484121,148.21,148.17,10.15665882]
[1768408325454,0.67484121,148.28,148.13,5.34408856]
[1768408325655,0.67484121,148.24,148.13,5.34408856]
[1768408325880,0.67484121,148.24,148.19,10.15665882]
[1768408326088,0.67484121,148.28,148.16,12.32]
[1768408326381,0.67484121,148.28,148.19,5.34408856]
[1768408327083,0.67484121,148.27,148.22,10.15665882]
[1768408327383,10.83150003,148.27,148.19,5.34408856]
[1768408327682,0.67484121,148.24,148.17,5.34408856]
[1768408327864,0.67484121,148.23,148.18,10.15665882]
[1768408328065,0.67484121,148.27,148.17,5.34408856]
[1768408328265,0.67484121,148.25,148.17,5.34408856]
[1768408328478,0.67484121,148.25,148.2,10.15665882]
[1768408328868,0.67484121,148.25,148.16,5.34408856]
[1768408329071,10.83150003,148.25,148.19,10.15665882]
[1768408329273,0.67484121,148.24,148.16,5.34408856]
[1768408329970,0.67484121,148.24,148.19,10.15665882]
[1768408330172,0.67484121,148.19,148.1,7.17839272]
[1768408330484,12.3,148.22,148.12,10.15665882]
[1768408330784,12.3,148.22,148.11,10.83150003]
[1768408330975,12.3,148.22,148.12,10.15665882]
[1768408330976,10.15665882,148.18,148.12,10.15665882]
[1768408331306,5.34408856,148.27,148.12,0.67484121]
[1768408331490,10.15665882,148.19,148.13,10.15665882]
[1768408331786,12.3,148.22,148.13,10.15665882]
[1768408331989,10.15665882,148.19,148.13,10.15665882]
[1768408332187,10.15665882,148.19,148.12,0.67484121]
[1768408332188,12.3,148.23,148.12,0.67484121]
[1768408332372,0.67484121,148.19,148.12,0.67484121]
[1768408332566,0.67484121,148.18,148.12,0.67484121]
[1768408332763,0.67484121,148.18,148.13,10.15665882]
[1768408333168,0.67484121,148.18,148.09,5.34408856]
[1768408333368,0.67484121,148.12,148.06,0.67484121]
[1768408333584,10.15665882,148.2,148.05,10.15665882]
[1768408333585,10.83150003,148.11,148.05,10.15665882]
[1768408333786,0.67484121,148.11,148.04,0.67484121]
[1768408334167,0.67484121,148.11,148.04,10.83150003]
[1768408334375,0.67484121,148.08,148.03,10.15665882]
[1768408334686,0.67484121,148.1,148.04,10.15665882]
[1768408335191,0.67484121,148.1,148.03,0.67484121]
[1768408335695,0.67484121,148.12,148.07,10.15665882]
[1768408336179,0.67484121,148.12,148.06,0.67484121]
[1768408336384,0.67484121,148.12,148.08,10.15665882]
[1768408336593,0.67484121,148.12,148.06,0.67484121]
[1768408336787,0.67484121,148.12,148.08,10.15665882]
[1768408337084,0.67484121,148.12,148.06,0.67484121]
[1768408337293,0.67484121,148.14,148.09,10.83150003]
[1768408337682,0.67484121,148.14,148.09,0.67484121]
[1768408337892,0.67484121,148.14,148.09,10.83150003]
[1768408338391,0.67484121,148.14,148.08,10.15665882]
[1768408338392,10.83150003,148.14,148.08,10.15665882]
[1768408338692,0.68572645,148.12,148.07,10.15665882]
[1768408338889,0.68572645,148.2,148.09,5.34408856]
[1768408339095,0.68572645,148.18,148.09,5.34408856]
[1768408339294,0.68572645,148.15,148.1,10.15665882]
[1768408339493,0.68572645,148.15,148.11,10.15665882]
[1768408339694,0.68572645,148.15,148.06,0.66937816]
[1768408339987,0.68572645,148.15,148.08,5.34408856]
[1768408340196,0.68572645,148.14,148.08,5.34408856]
[1768408340578,0.68940767,148.13,148.06,6.01346672]
[1768408340779,0.68940767,148.13,148.1,10.15665882]
[1768408341101,0.68940767,148.13,148.08,10.15665882]
[1768408341296,0.68940767,148.1,148.06,0.66937816]
[1768408341799,5.34408856,148.17,148.06,0.66937816]
[1768408341800,0.68940767,148.09,148.06,0.66937816]
[1768408341997,0.68940767,148.08,148.06,0.66937816]
[1768408342196,0.68940767,148.1,148.06,0.66937816]
[1768408342906,0.68940767,148.1,148.06,10.82603698]
[1768408343194,0.68940767,148.12,148.07,10.15665882]
[1768408343376,0.68940767,148.12,148.06,10.15665882]
[1768408343572,0.68940767,148.11,148.05,0.67484121]
[1768408343788,0.68940767,148.11,148.06,10.15665882]
[1768408344384,10.15665882,148.2,148.08,10.15665882]
[1768408344385,0.68940767,148.13,148.08,10.15665882]
[1768408344793,0.68940767,148.12,148.07,10.15665882]
[1768408345400,0.68940767,148.14,148.07,0.67484121]
[1768408345593,0.68940767,148.15,148.09,0.67484121]
[1768408345788,10.84606649,148.17,148.11,10.15665882]
[1768408345987,0.68940767,148.15,148.09,0.67484121]
[1768408347003,0.68940767,148.17,148.11,10.15665882]
[1768408347177,0.68940767,148.17,148.12,10.15665882]
[1768408347504,0.68940767,148.17,148.1,0.67484121]
[1768408347901,0.68940767,148.17,148.12,10.15665882]
[1768408348087,0.68940767,148.17,148.1,0.67484121]
[1768408348285,0.68940767,148.16,148.11,10.15665882]
[1768408348486,0.68940767,148.16,148.12,10.15665882]
[1768408348686,10.84606649,148.18,148.13,10.15665882]
[1768408348883,0.68940767,148.17,148.09,0.67484121]
[1768408349095,0.68940767,148.16,148.09,0.67484121]
[1768408349409,0.68940767,148.14,148.07,0.67484121]
[1768408349601,0.68940767,148.14,148.1,10.15665882]
[1768408350187,0.68940767,148.13,148.09,10.15665882]
[1768408350394,0.68940767,148.11,148.07,10.15665882]
[1768408350794,6.75040197,148.14,148.09,10.15665882]
[1768408351099,0.68940767,148.2,148.12,5.34408856]
[1768408351290,0.68940767,148.19,148.14,10.15665882]
[1768408351495,0.68940767,148.18,148.13,10.15665882]
[1768408351691,0.68940767,148.17,148.12,10.15665882]
[1768408352405,23.61844716,148.19,148.1,12.09614141]
[1768408352406,0.68940767,148.16,148.11,10.15665882]
[1768408352579,0.68940767,148.16,148.1,22.25280023]
[1768408352784,0.68940767,148.15,148.1,22.25280023]
[1768408353011,0.68940767,148.15,148.11,10.15665882]
[1768408353312,0.68940767,148.15,148.11,12.99817758]
[1768408354289,0.68940767,148.14,148.09,6.75237139]
[1768408354503,0.68940767,148.14,148.1,6.7520822]
[1768408354712,0.68940767,148.16,148.11,6.75171538]
[1768408354887,0.68940767,148.16,148.12,6.24647371]
[1768408355091,0.68940767,148.16,148.13,6.24647371]
[1768408355488,0.68940767,148.18,148.15,6.24647371]
[1768408355708,0.68940767,148.18,148.14,6.24647371]
[1768408355890,0.68940767,148.25,148.17,6.24647371]
[1768408356203,0.68940767,148.25,148.12,16.87740435]
[1768408356204,0.68940767,148.2,148.12,7.42574819]
[1768408356401,0.68940767,148.2,148.15,6.24647371]
[1768408356988,0.68940767,148.2,148.13,0.67484121]
[1768408356989,0.68940767,148.2,148.16,6.24647371]
[1768408357195,0.68940767,148.2,148.14,6.75031195]
[1768408357716,0.68940767,148.18,148.15,6.24647371]
[1768408358014,0.68940767,148.18,148.15,6.74980462]
[1768408358220,0.68940767,148.2,148.16,6.24647371]
[1768408359514,0.68940767,148.2,148.15,6.74980462]
[1768408359694,0.68940767,148.2,148.14,0.67484121]
[1768408359695,0.68940767,148.24,148.19,6.24647371]
[1768408359897,0.68940767,148.24,148.21,6.24647371]
[1768408360295,29.15791924,148.3,148.19,0.67484121]
[1768408360592,6.24647371,148.26,148.19,0.67484121]
[1768408360811,6.24647371,148.27,148.22,6.24647371]
[1768408361113,29.15791924,148.3,148.22,6.24647371]
[1768408361330,12.99050021,148.28,148.22,6.24647371]
[1768408361513,6.7440265,148.28,148.22,6.24647371]
[1768408361701,6.7440265,148.28,148.21,6.74718305]
[1768408361900,6.7440265,148.28,148.22,6.24647371]
[1768408362212,0.68940767,148.26,148.21,7.43391496]
[1768408362416,0.68940767,148.26,148.22,6.24647371]
[1768408362924,0.68940767,148.26,148.21,13.68038867]
[1768408363308,0.68940767,148.25,148.2,7.43423608]
[1768408363621,0.68940767,148.25,148.21,6.24647371]
[1768408363803,0.68940767,148.25,148.19,6.74796154]
[1768408364117,12.99148736,148.26,148.18,7.434994]
[1768408364118,0.68940767,148.23,148.18,7.434994]
[1768408364414,0.68940767,148.23,148.18,13.68146771]
[1768408364612,0.68940767,148.23,148.19,6.74805877]
[1768408365399,0.68940767,148.23,148.18,6.93320562]
[1768408365614,0.68940767,148.23,148.18,7.43516927]
[1768408365794,7.43575371,148.23,148.18,6.93320562]
[1768408366109,7.43575371,148.23,148.17,6.24647371]
[1768408366110,0.68940767,148.22,148.17,6.24647371]
[1768408366301,0.68940767,148.21,148.16,6.24647371]
[1768408366497,0.68940767,148.19,148.14,13.68349462]
[1768408366695,0.68940767,148.17,148.12,13.6841444]
[1768408367119,0.68940767,148.17,148.13,6.24647371]
[1768408367307,0.68940767,148.17,148.12,7.43767069]
[1768408367639,0.68940767,148.17,148.13,6.24647371]
[1768408367996,0.68940767,148.17,148.1,25.14974117]
[1768408368218,0.68940767,148.15,148.08,0.68673191]
[1768408368395,0.68940767,148.13,148.08,6.24647371]
[1768408368704,0.68940767,148.12,148.08,6.24647371]
[1768408368899,0.68940767,148.12,148.08,6.75306248]
[1768408369122,0.68940767,148.12,148.08,12.99953619]
[1768408369325,0.68940767,148.14,148.09,12.99898598]
[1768408369511,0.68940767,148.14,148.1,6.24647371]
[1768408369819,0.68940767,148.14,148.08,7.43970052]
[1768408370422,0.68940767,148.14,148.09,6.24647371]
[1768408370718,0.65662203,148.13,148.08,12.99952288]
[1768408370893,0.65662203,148.13,148.09,6.24647371]
[1768408371416,12.3,148.15,148.1,12.99839889]
[1768408371812,12.3,148.15,148.11,6.24647371]
[1768408372018,16.87015223,148.2,148.13,6.24647371]
[1768408372019,12.3,148.16,148.13,6.24647371]
[1768408372199,12.3,148.16,148.11,6.24647371]
[1768408372806,12.3,148.16,148.1,7.43025173]
[1768408373022,12.3,148.16,148.11,6.24647371]
[1768408373522,12.3,148.16,148.12,6.24647371]
[1768408374428,19.0495072,148.16,148.11,12.99804584]
[1768408374631,12.61928198,148.16,148.11,12.99804584]
[1768408374803,12.61928198,148.16,148.12,6.24647371]
[1768408375121,0.65662203,148.22,148.16,0.67832655]
[1768408375433,0.65662203,148.22,148.17,12.9951619]
[1768408375623,12.3,148.23,148.19,6.24647371]
[1768408376119,12.3,148.23,148.18,0.67832655]
[1768408376323,12.3,148.23,148.19,6.24647371]
[1768408376502,12.3,148.23,148.18,6.92480026]
[1768408376697,12.61928198,148.23,148.18,6.24647371]
[1768408376912,18.86575569,148.23,148.17,6.24647371]
[1768408377120,18.86575569,148.23,148.17,6.92480026]
[1768408377309,18.86575569,148.23,148.17,13.67366278]
[1768408377618,7.39997646,148.22,148.16,12.99583983]
[1768408377826,7.39997646,148.22,148.17,6.24647371]
[1768408378029,7.39997646,148.22,148.16,7.42769267]
[1768408378327,0.32262165,148.21,148.16,6.92480026]
[1768408378525,0.32262165,148.21,148.14,13.67509167]
[1768408378729,0.64670188,148.18,148.12,0.67832655]
[1768408378910,19.19317559,148.18,148.12,6.92480026]
[1768408379106,6.57557664,148.17,148.1,7.43038223]
[1768408379310,0.32910293,148.17,148.11,6.24647371]
[1768408379610,13.32491985,148.17,148.11,6.92480026]
[1768408379817,6.8899996,148.16,148.09,7.43087787]
[1768408380024,0.64352589,148.16,148.1,7.43050936]
[1768408380210,12.3,148.15,148.1,13.67698307]
[1768408380530,18.87872087,148.15,148.1,7.43050936]
[1768408380825,12.63224716,148.15,148.1,13.67698307]
[1768408381001,12.63224716,148.15,148.1,0.67832655]
[1768408381206,12.63224716,148.15,148.1,6.92480026]
[1768408381406,12.63224716,148.15,148.1,0.67832655]
[1768408381619,12.63224716,148.15,148.1,6.92480026]
[1768408381822,0.63736226,148.12,148.07,61.5]
[1768408382126,6.88383597,148.12,148.07,68.25355633]
[1768408382434,0.63736226,148.12,148.07,68.25355633]
[1768408382728,6.88383597,148.12,148.07,68.25355633]
[1768408383107,0.63736226,148.12,148.07,68.25355633]
[1768408383513,0.63736226,148.12,148.07,61.5]
[1768408383718,0.63736226,148.12,148.07,68.93177979]
[1768408384513,7.40608207,148.16,148.11,0.67832655]
[1768408384716,12.95662203,148.16,148.11,6.92480026]
[1768408385117,0.65662203,148.18,148.12,6.92480026]
[1768408385432,16.86833462,148.21,148.07,85.1373595]
[1768408385433,12.61928198,148.19,148.14,0.67832655]
[1768408385636,16.86610381,148.23,148.16,0.67832655]
[1768408385831,18.54647371,148.23,148.17,6.24647371]
[1768408386028,12.3,148.22,148.17,6.24647371]
[1768408386233,12.61928198,148.22,148.17,6.24647371]
[1768408386733,6.89972234,148.21,148.14,0.67832655]
[1768408386942,0.32262165,148.2,148.15,6.24647371]
[1768408388037,0.64670188,148.17,148.1,0.67832655]
[1768408388337,12.62910293,148.16,148.1,0.67832655]
[1768408388525,12.3,148.15,148.1,6.92480026]
[1768408389112,23.61685126,148.2,148.13,0.67832655]
[1768408389113,6.24647371,148.18,148.13,0.67832655]
[1768408389441,12.3,148.19,148.14,6.92480026]
[1768408389818,0.65662203,148.24,148.15,0.67832655]
[1768408390023,6.74665489,148.23,148.19,6.24647371]
[1768408390231,7.06593687,148.23,148.18,6.24647371]
[1768408390541,13.31241058,148.23,148.17,6.24647371]
[1768408390744,7.06593687,148.23,148.17,6.24647371]
[1768408390919,0.31928198,148.23,148.17,0.67832655]
[1768408391115,12.3,148.23,148.19,6.24647371]
[1768408391352,12.3,148.23,148.19,6.92480026]
[1768408391740,0.65662203,148.25,148.19,6.92480026]
[1768408391947,7.40020322,148.29,148.23,6.24647371]
[1768408392135,7.40020322,148.29,148.19,28.96224373]
[1768408392136,0.31928198,148.28,148.19,28.96224373]
[1768408392441,6.74358119,148.29,148.2,0.67832655]
[1768408392442,6.24647371,148.26,148.2,0.67832655]
[1768408392744,0.64670188,148.23,148.18,6.24647371]
[1768408393123,0.64670188,148.23,148.17,0.67832655]
[1768408393323,0.64670188,148.23,148.18,6.24647371]
[1768408393648,6.89317559,148.23,148.17,0.67832655]
[1768408393832,0.64352589,148.21,148.16,6.24647371]
[1768408394142,0.33224716,148.2,148.13,0.67832655]
[1768408394343,0.64041311,148.19,148.11,0.67832655]
[1768408394543,0.64041311,148.19,148.13,6.24647371]
[1768408394732,0.64041311,148.19,148.12,6.92480026]
[1768408394933,6.24647371,148.18,148.12,6.92480026]
[1768408395241,6.24647371,148.17,148.12,0.67832655]
[1768408395445,0.33532882,148.18,148.12,0.67832655]
[1768408395744,18.54647371,148.17,148.12,0.67832655]
[1768408395936,12.3,148.17,148.12,13.67592208]
[1768408396246,7.08389971,148.18,148.12,6.92480026]
[1768408396449,13.33037342,148.18,148.12,6.92480026]
[1768408396751,12.99469157,148.19,148.13,0.67832655]
[1768408396943,6.24647371,148.19,148.14,0.67832655]
[1768408397429,6.74774424,148.2,148.14,0.67832655]
[1768408397629,6.74774424,148.2,148.14,6.92480026]
[1768408397828,0.65662203,148.27,148.18,7.42681747]
[1768408398040,0.65324863,148.24,148.19,6.24647371]
[1768408398240,6.74490759,148.26,148.21,0.67832655]
[1768408398431,6.74490759,148.26,148.21,6.92480026]
[1768408399044,6.24647371,148.25,148.19,0.66169481]
[1768408399226,7.39815622,148.26,148.19,6.90816852]
[1768408399428,7.39815622,148.26,148.19,0.66169481]
[1768408399429,6.56909536,148.25,148.19,0.66169481]
[1768408399628,6.56909536,148.25,148.19,6.90816852]
[1768408399823,0.69577086,148.27,148.19,13.65624207]
[1768408400023,0.69577086,148.3,148.21,0.66169481]
[1768408400331,0.30749692,148.29,148.22,0.7054392]
[1768408400529,23.59603586,148.33,148.22,0.7054392]
[1768408400530,6.91138955,148.28,148.22,0.7054392]
[1768408400731,6.24647371,148.27,148.22,0.7054392]
[1768408400932,0.66491584,148.28,148.22,0.7054392]
[1768408401142,6.24647371,148.27,148.22,0.7054392]
[1768408401557,6.74451904,148.27,148.22,0.7054392]
[1768408401850,6.24647371,148.27,148.22,0.7054392]
[1768408402933,7.40903916,148.28,148.22,0.7054392]
[1768408403141,6.24647371,148.27,148.22,0.7054392]
[1768408404034,7.40903916,148.28,148.22,7.4520984]
[1768408404252,13.65551287,148.28,148.22,7.4520984]
[1768408404457,6.24647371,148.27,148.22,0.7054392]
[1768408404958,0.66852614,148.3,148.23,0.7054392]
[1768408405131,6.91499985,148.3,148.23,0.7054392]
[1768408405326,6.24647371,148.28,148.23,0.7054392]
[1768408405530,6.74399784,148.28,148.23,0.7054392]
[1768408405746,12.99047155,148.28,148.23,0.7054392]
[1768408405947,12.99047155,148.28,148.22,6.74667192]
[1768408405948,0.66852614,148.31,148.24,0.7054392]
[1768408406149,12.60749692,148.3,148.24,0.7054392]
[1768408406345,6.74263367,148.31,148.24,0.7054392]
[1768408406652,171.84408856,148.37,148.24,0.7054392]
[1768408406653,0.1,148.37,148.33,0.7054392]
[1768408406857,0.66852614,148.38,148.3,0.7054392]
[1768408407230,0.40649692,148.37,148.3,0.7054392]
[1768408407433,12.70649692,148.37,148.3,0.7054392]
[1768408407650,7.40626712,148.36,148.3,0.7054392]
[1768408407840,12.98649006,148.37,148.3,0.7054392]
[1768408408037,7.14651327,148.37,148.3,0.7054392]
[1768408408232,7.14651327,148.37,148.31,0.7054392]
[1768408408632,6.24647371,148.35,148.29,7.4489522]
[1768408408832,6.24647371,148.35,148.3,0.7054392]
[1768408409046,6.9098114,148.34,148.27,7.44979914]
[1768408409245,6.65810719,148.33,148.27,6.95191291]
[1768408409456,6.66059906,148.31,148.25,13.0054392]
[1768408409768,0.66852614,148.29,148.16,0.7054392]
[1768408409936,0.66590584,148.25,148.18,0.7054392]
[1768408410255,0.66590584,148.25,148.18,6.95191291]
[1768408410449,0.66590584,148.25,148.19,0.7054392]
[1768408410649,12.96590584,148.25,148.19,0.7054392]
[1768408410854,6.24647371,148.22,148.15,0.7054392]
[1768408411041,6.24647371,148.21,148.15,0.7054392]
[1768408411452,6.24647371,148.21,148.16,0.7054392]
[1768408411652,6.24647371,148.21,148.15,6.24647371]
[1768408411653,7.408194,148.21,148.15,6.24647371]
[1768408411854,7.408194,148.21,148.15,0.7054392]
[1768408412061,7.408194,148.21,148.14,6.75030429]
[1768408412062,6.66059906,148.2,148.14,6.95191291]
[1768408412258,6.24647371,148.19,148.14,0.7054392]
[1768408412434,6.66059906,148.2,148.14,0.7054392]
[1768408412639,0.41412535,148.2,148.14,0.7054392]
[1768408412957,6.74737335,148.21,148.15,6.24647371]
[1768408413163,6.24647371,148.21,148.15,0.7054392]
[1768408413356,29.16510049,148.24,148.15,10.85005061]
[1768408413552,17.64408856,148.24,148.06,0.7054392]
[1768408413760,10.14461141,148.2,148.04,0.7054392]
[1768408413941,12.3,148.19,148.06,0.7054392]
[1768408414143,12.3,148.18,148.06,0.7054392]
[1768408414342,10.14461141,148.12,148.06,0.7054392]
[1768408414547,10.14461141,148.12,148.07,0.7054392]
[1768408414757,12.3,148.18,148.09,0.7054392]
[1768408415137,10.14461141,148.16,148.09,10.85005061]
[1768408415337,0.099,148.17,148.09,0.7054392]
[1768408415633,6.75010263,148.15,148.09,0.7054392]
[1768408415840,16.89471404,148.15,148.09,0.7054392]
[1768408416639,0.10109486,148.14,148.07,0.7054392]
[1768408416836,10.14461141,148.11,148.07,0.7054392]
[1768408417042,0.10109486,148.14,148.05,0.7054392]
[1768408417238,0.306413,148.13,148.05,0.7054392]
[1768408417651,6.75241322,148.1,148.05,0.7054392]
[1768408417846,23.73805974,148.1,148.03,0.7054392]
[1768408418058,10.14461141,148.07,148.03,0.7054392]
[1768408418238,23.73805974,148.1,148.03,0.7054392]
[1768408418239,10.14461141,148.06,148.03,0.7054392]
[1768408418762,23.73805974,148.1,148.03,0.7054392]
[1768408418937,10.14461141,148.07,148.03,0.7054392]
[1768408419138,10.14461141,148.06,148.03,0.7054392]
[1768408419358,10.14461141,148.06,148.01,0.7054392]
[1768408419543,10.14461141,148.05,148.01,0.7054392]
[1768408420238,6.75453802,148.05,147.99,0.7054392]
[1768408420744,40.48036701,148.22,148.02,0.7054392]
[1768408420951,10.14461141,148.13,148.07,10.14461141]
[1768408421262,10.14461141,148.2,148.09,10.14461141]
[1768408421561,10.14461141,148.14,148.08,10.14461141]
[1768408421757,23.62789441,148.13,148.06,0.7054392]
[1768408422058,33.77250582,148.13,148.06,0.7054392]
[1768408422253,23.62789441,148.13,148.06,0.7054392]
[1768408422451,23.62789441,148.13,148.08,10.14461141]
[1768408422636,6.75082697,148.13,148.09,10.14461141]
[1768408422834,6.75082697,148.13,148.07,0.7054392]
[1768408423038,6.75082697,148.13,148.08,10.14461141]
[1768408423243,23.62789441,148.13,148.05,5.34408856]
[1768408423442,6.75033407,148.15,148.08,0.7054392]
[1768408423649,23.62528097,148.15,148.08,0.7054392]
[1768408424042,6.75033407,148.15,148.09,7.45806563]
[1768408424237,23.623198,148.16,148.09,0.7054392]
[1768408424441,6.7495479,148.16,148.09,0.7054392]
[1768408424652,23.623198,148.16,148.11,10.14461141]
[1768408424856,6.7495479,148.16,148.1,6.75210796]
[1768408425049,6.7495479,148.16,148.13,10.14461141]
[1768408425256,0.46444662,148.15,148.09,12.32]
[1768408425450,0.66444476,148.14,148.09,10.14461141]
[1768408425649,0.66246478,148.11,148.05,6.04952776]
[1768408425848,0.66246478,148.11,148.05,5.34408856]
[1768408426472,0.66246478,148.11,148.07,10.14461141]
[1768408426774,0.66852614,148.13,148.1,10.14461141]
[1768408426977,7.41844176,148.15,148.11,10.14461141]
[1768408427680,7.41844176,148.15,148.1,10.14461141]
[1768408427874,7.41844176,148.15,148.08,7.45823834]
[1768408428044,7.41844176,148.15,148.1,10.14461141]
[1768408428244,0.66852614,148.15,148.11,10.14461141]
[1768408428550,0.66646494,148.13,148.09,12.32]
[1768408428752,0.66646494,148.13,148.09,22.46461141]
[1768408429059,0.66646494,148.13,148.05,12.80362039]
[1768408429241,0.66444476,148.1,148.03,0.7054392]
[1768408429445,0.66444476,148.1,148.06,10.14461141]
[1768408429858,0.66444476,148.1,148.05,6.75414485]
[1768408430452,0.66444476,148.1,148.06,10.14461141]
[1768408430652,0.69030054,148.12,148.06,0.66734706]
[1768408430853,0.69030054,148.12,148.08,10.14461141]
[1768408431051,6.75047276,148.14,148.1,10.14461141]
[1768408431052,0.69030054,148.14,148.1,10.14461141]
[1768408431363,17.58538365,148.14,148.07,0.66734706]
[1768408431564,7.19088965,148.15,148.07,0.66734706]
[1768408431772,7.19088965,148.15,148.1,10.14461141]
[1768408432445,0.44084938,148.15,148.1,6.75213726]
[1768408432646,7.19100418,148.15,148.1,16.89675894]
[1768408432867,0.68536116,148.12,148.05,6.75440546]
[1768408433072,0.68536116,148.12,148.04,0.66734706]
[1768408433073,0.69030054,148.13,148.04,0.66734706]
[1768408433263,0.69030054,148.13,148.09,6.75231648]
[1768408433459,7.44045534,148.15,148.1,6.75214263]
[1768408433949,0.69030054,148.15,148.1,6.75214263]
[1768408434146,0.69030054,148.15,148.1,16.89675404]
[1768408434371,0.69030054,148.15,148.1,6.75214263]
[1768408434567,0.69030054,148.15,148.1,16.89675404]
[1768408434865,0.69030054,148.15,148.1,7.41948969]
[1768408435070,0.69030054,148.15,148.11,10.14461141]
[1768408435251,0.69030054,148.17,148.11,10.81195847]
[1768408435451,7.43933753,148.17,148.12,10.14461141]
[1768408436060,0.69030054,148.17,148.12,10.14461141]
[1768408436251,7.4393595,148.17,148.12,10.14461141]
[1768408436455,0.44084938,148.16,148.1,10.14461141]
[1768408436766,0.68780603,148.15,148.07,12.32]
[1768408437067,0.44331895,148.14,148.09,10.14461141]
[1768408437267,0.44331895,148.14,148.08,7.42032153]
[1768408437478,0.44331895,148.14,148.09,6.75254619]
[1768408437674,0.44331895,148.14,148.08,7.42032381]
[1768408437880,0.44331895,148.14,148.09,10.14461141]
[1768408438489,7.43618813,148.13,148.09,10.14461141]
[1768408439461,7.43618813,148.13,148.08,6.75306931]
[1768408439661,7.43618813,148.13,148.09,10.14461141]
[1768408440065,0.44573937,148.12,148.06,0.66734706]
[1768408440277,0.44573937,148.12,148.09,10.14461141]
[1768408440458,7.44080289,148.14,148.1,10.14461141]
[1768408441178,0.69030054,148.14,148.09,6.75249549]
[1768408441363,0.69030054,148.14,148.1,10.14461141]
[1768408442058,7.43945783,148.17,148.11,0.66734706]
[1768408442259,7.43696332,148.17,148.13,10.14461141]
[1768408442459,0.44331895,148.16,148.1,0.66734706]
[1768408442762,23.62166859,148.17,148.1,0.66734706]
[1768408442763,10.59035078,148.14,148.1,0.66734706]
[1768408443082,10.59035078,148.14,148.09,0.66734706]
[1768408443083,0.68296494,148.13,148.09,0.66734706]
[1768408443272,0.69030054,148.11,148.09,0.66734706]
[1768408443666,0.69030054,148.11,148.06,10.14461141]
[1768408444270,0.69030054,148.11,148.05,12.09823738]
[1768408444774,0.69030054,148.1,148.06,10.14461141]
[1768408444976,0.69030054,148.1,148.05,12.09823738]
[1768408445177,0.69030054,148.1,148.07,10.14461141]
[1768408445586,0.69030054,148.1,148.05,12.09823738]
[1768408445765,0.69030054,148.08,148.05,3.89408856]
[1768408446090,0.69030054,148.08,148.04,10.14461141]
[1768408446258,0.099,148.06,147.99,0.66734706]
[1768408446462,0.58538753,148.05,148.0,10.14461141]
[1768408446663,7.34012336,148.05,147.99,0.66734706]
[1768408446883,7.34012336,148.05,147.98,0.09027176]
[1768408446884,0.5805723,148.02,147.98,0.09027176]
[1768408447086,0.5805723,148.02,147.95,6.75896909]
[1768408447087,35.94092292,148.05,147.95,10.14461141]
[1768408447287,35.94092292,148.05,147.94,0.66734706]
[1768408447583,0.39030054,148.04,147.96,10.14461141]
[1768408447793,10.24361141,148.01,147.95,16.90346742]
[1768408447996,0.099,148.01,147.92,0.66734706]
[1768408448195,10.53199894,147.99,147.92,0.66734706]
[1768408448396,0.38738753,147.99,147.93,10.14461141]
[1768408448595,0.38738753,147.99,147.94,10.14461141]